bitfinex/quotes_ETHUSD_20250905
["timestamp","ask_amount","ask_price","bid_price","bid_amount"]
[1757100910882,0.1081,4327.3,4327.2,13.09836318]
[1757100912688,0.118,4327.3,4327.2,13.09836318]
[1757100913291,0.118,4327.3,4327.2,9.14236318]
[1757100913480,0.118,4327.3,4327.2,13.09736318]
[1757100913805,0.5712,4327.3,4327.2,3.33139998]
[1757100914223,0.118,4327.3,4327.2,3.33139998]
[1757100915010,0.118,4327.3,4327.2,5.64236318]
[1757100916290,0.001,4327.3,4327.2,5.64236318]
[1757100916489,0.001,4327.3,4327.2,6.09266318]
[1757100917310,0.001,4327.3,4327.2,5.64236318]
[1757100917693,0.001,4327.3,4327.2,9.14236318]
[1757100918097,0.001,4327.3,4327.2,9.88396318]
[1757100918290,0.001,4327.3,4327.2,12.06144365]
[1757100922499,0.001,4327.3,4327.2,15.06144365]
[1757100922901,0.001,4327.3,4327.2,15.15405028]
[1757100923935,0.001,4327.3,4327.2,15.94605028]
[1757100925423,0.001,4327.3,4327.2,15.55875028]
[1757100925731,0.001,4327.3,4327.2,18.89924365]
[1757100930227,0.001,4327.3,4327.2,15.56784367]
[1757100932427,0.001,4327.3,4327.2,15.56684367]
[1757100933129,0.001,4327.3,4327.2,18.89824365]
[1757100933558,0.001,4327.3,4327.2,18.99084428]
[1757100935327,0.001,4327.3,4327.2,18.67294428]
[1757100935555,0.118,4327.3,4327.2,13.97934428]
[1757100935742,0.118,4327.3,4327.2,17.93034428]
[1757100935941,0.118,4327.3,4327.2,13.97934428]
[1757100936142,0.118,4327.3,4327.2,17.93034428]
[1757100936629,0.118,4327.3,4327.2,13.97934428]
[1757100936856,0.118,4327.3,4327.2,17.83774365]
[1757100937439,0.001,4327.3,4327.2,17.83774365]
[1757100937653,0.001,4327.3,4327.2,18.12904365]
[1757100937960,0.001,4327.3,4327.2,18.57934365]
[1757100938950,0.001,4327.3,4327.2,18.67195693]
[1757100939431,0.001,4327.3,4327.2,17.93035693]
[1757100939630,0.1046,4327.3,4327.2,17.92935693]
[1757100940330,0.001,4327.3,4327.2,17.92935693]
[1757100940758,0.001,4327.3,4327.2,18.70865693]
[1757100941783,0.001,4327.3,4327.2,19.17455693]
[1757100942785,0.001,4327.3,4327.2,18.70865693]
[1757100942953,0.001,4327.3,4327.2,18.40765693]
[1757100943149,0.001,4327.3,4327.2,17.92935693]
[1757100943971,0.1046,4327.3,4327.2,16.20756318]
[1757100944964,0.1046,4327.3,4327.2,12.25756318]
[1757100945149,0.5712,4327.3,4327.2,3.33139998]
[1757100945353,0.6372,4327.3,4327.2,7.28039998]
[1757100945963,0.6372,4327.3,4327.2,3.33139998]
[1757100946986,0.5712,4327.3,4327.2,3.33139998]
[1757100949290,0.5712,4327.3,4327.2,5.64236318]
[1757100949497,0.1046,4327.3,4327.2,5.64236318]
[1757100949697,0.001,4327.3,4327.2,6.42166318]
[1757100949989,0.001,4327.3,4327.2,8.50573452]
[1757100950564,0.001,4327.3,4327.2,12.00573452]
[1757100951059,0.001,4327.3,4327.2,10.38756318]
[1757100952404,0.001,4327.3,4327.2,10.50276318]
[1757100952609,0.001,4327.3,4327.2,13.50276318]
[1757100955610,0.001,4327.3,4327.2,13.59535824]
[1757100955812,0.001,4327.3,4327.2,14.38735824]
[1757100956120,1e-08,4327.8,4327.7,12.94529138]
[1757100956418,1e-08,4327.8,4327.7,18.70949138]
[1757100956591,1e-08,4327.8,4327.7,19.95469138]
[1757100956783,1e-08,4327.8,4327.7,23.45469138]
[1757100956983,1e-08,4327.8,4327.7,25.81517126]
[1757100958221,1e-08,4327.8,4327.7,21.86817126]
[1757100958515,1e-08,4327.8,4327.7,25.81517126]
[1757100959622,1e-08,4327.8,4327.7,21.86817126]
[1757100959792,1e-08,4327.8,4327.7,25.81517126]
[1757100960321,1e-08,4327.8,4327.7,26.77600301]
[1757100963019,1e-08,4327.8,4327.7,14.42850784]
[1757100963221,0.001,4328.2,4328.1,5.64188262]
[1757100963423,0.001,4328.2,4328.1,10.38312539]
[1757100963640,0.1046,4328.2,4328.1,6.55232539]
[1757100963927,0.5712,4328.2,4328.1,9.72728262]
[1757100964091,0.5712,4328.2,4328.1,16.67228262]
[1757100966327,0.1046,4328.2,4328.1,16.67228262]
[1757100972036,0.001,4328.2,4328.1,16.96878262]
[1757100972334,0.001,4328.2,4328.1,17.89218262]
[1757100972633,0.001,4328.2,4328.1,20.95209059]
[1757100977439,0.001,4328.2,4328.1,23.38609059]
[1757100977639,0.001,4328.2,4328.1,28.12209059]
[1757100979129,0.001,4328.2,4328.1,35.75668576]
[1757100979446,0.001,4328.2,4328.1,34.60292028]
[1757100982136,0.001,4329.3,4329.2,3.32739997]
[1757100982339,0.001,4329.3,4329.2,19.39286525]
[1757100982520,0.1332,4329.3,4329.2,19.39286525]
[1757100982722,0.1332,4329.3,4329.2,22.89286525]
[1757100982921,0.1332,4329.3,4329.2,23.36016525]
[1757100984049,0.001,4329.3,4329.2,23.36016525]
[1757100985038,0.1332,4329.3,4329.2,23.36016525]
[1757100985647,0.001,4329.3,4329.2,23.36016525]
[1757100986013,0.001,4329.3,4329.2,23.82116525]
[1757100986220,0.001,4329.3,4329.2,24.11766525]
[1757100986426,0.001,4329.3,4329.2,24.58006525]
[1757100987056,0.001,4329.3,4329.2,23.36016525]
[1757100987557,0.1332,4329.3,4329.2,23.36016525]
[1757100988058,0.1332,4329.3,4329.2,16.87933556]
[1757100988658,0.5714,4329.3,4329.2,12.93733556]
[1757100988858,0.1332,4329.3,4329.2,16.54459556]
[1757100990723,0.001,4329.3,4329.2,16.54459556]
[1757100990916,0.001,4329.3,4329.2,24.24532525]
[1757100992366,0.001,4329.3,4329.2,24.36052525]
[1757100992670,0.026,4329.8,4329.7,2.30962884]
[1757100992822,0.026,4329.8,4329.7,6.36382884]
[1757100993032,0.3302,4329.8,4329.7,6.36382884]
[1757100993237,0.3302,4329.8,4329.7,9.86382884]
[1757100993536,0.3302,4329.8,4329.7,10.06079005]
[1757100998347,0.3302,4329.8,4329.7,13.38619002]
[1757100999558,0.026,4329.8,4329.7,18.60437784]
[1757100999758,0.026,4329.8,4329.7,25.63850753]
[1757101000291,1e-08,4329.8,4329.7,25.63850753]
[1757101000599,1e-08,4329.8,4329.7,26.43050753]
[1757101001082,1e-08,4329.8,4329.7,26.60104126]
[1757101006852,0.001,4330.2,4330.1,5.63381544]
[1757101007183,0.001,4330.2,4330.1,20.14497431]
[1757101007396,0.001,4330.2,4330.1,28.19397431]
[1757101007599,0.001,4330.2,4330.1,32.22461046]
[1757101013214,0.001,4330.7,4330.6,5.6315488]
[1757101013501,0.001,4330.7,4330.6,13.35962452]
[1757101013707,0.1455,4330.7,4330.6,13.47482452]
[1757101014011,0.1455,4330.7,4330.6,17.40372452]
[1757101018770,0.001,4330.7,4330.6,17.40372452]
[1757101019173,0.4289,4331.4,4330.9,5.60538462]
[1757101019410,0.066,4331.6,4331.5,2.30866905]
[1757101019704,0.5441,4331.7,4331.6,2.30861575]
[1757101019705,0.1152,4331.7,4331.6,2.30861575]
[1757101020168,0.4266,4331.7,4331.6,2.30861575]
[1757101020503,0.6874,4331.7,4331.6,2.30861575]
[1757101021075,0.4266,4331.7,4331.6,2.30861575]
[1757101021274,0.6874,4331.7,4331.6,2.30861575]
[1757101022328,0.4266,4331.7,4331.6,2.30861575]
[1757101023396,0.4266,4331.7,4331.6,5.80861575]
[1757101023911,0.1152,4331.7,4331.6,16.79077753]
[1757101024098,0.025,4331.8,4331.7,2.30856245]
[1757101024299,0.025,4331.8,4331.7,10.17684807]
[1757101024507,0.025,4331.8,4331.7,10.44146245]
[1757101024884,0.025,4331.8,4331.7,14.37036245]
[1757101025082,0.025,4331.8,4331.7,16.63827042]
[1757101030706,0.025,4331.8,4331.7,16.20017042]
[1757101031228,0.1622,4331.8,4331.7,15.43637042]
[1757101031441,0.1622,4331.8,4331.7,11.50537042]
[1757101031593,0.1622,4331.8,4331.7,15.43437042]
[1757101031794,0.025,4331.8,4331.7,15.93017042]
[1757101031990,0.1652,4331.8,4331.7,11.50537042]
[1757101032322,0.5955,4331.8,4331.7,12.73756245]
[1757101032540,0.6615,4331.8,4331.7,3.5]
[1757101032691,2.30859184,4331.7,4331.2,0.69393283]
[1757101032892,0.1431,4331.3,4330.9,2.30896438]
[1757101033197,0.1431,4331.3,4330.2,2.1968]
[1757101033198,0.1431,4331.3,4331.1,2.308874]
[1757101033519,0.1431,4331.3,4331.2,6.23782896]
[1757101033700,0.5706,4331.3,4331.2,6.23782896]
[1757101034097,0.5706,4331.3,4331.2,9.73782896]
[1757101034719,0.1431,4331.3,4331.2,9.73782896]
[1757101039231,0.1431,4331.3,4331.2,5.80882896]
[1757101039438,0.1431,4331.3,4331.2,9.73582896]
[1757101040498,0.1152,4331.7,4331.6,2.30861575]
[1757101040898,0.1152,4331.7,4331.5,3.927]
[1757101040899,0.2611,4331.7,4331.5,3.927]
[1757101041202,0.6857,4331.7,4331.5,3.927]
[1757101041394,0.6857,4331.7,4331.5,3.92431472]
[1757101041594,0.6857,4331.7,4331.5,6.23298291]
[1757101042048,0.6857,4331.7,4331.5,3.92431472]
[1757101042234,0.4246,4331.6,4331.3,2.30876641]
[1757101042547,0.4363,4331.5,4331.3,2.30876641]
[1757101042722,8.25863142,4331.4,4330.7,0.5185]
[1757101042920,7.62213142,4330.8,4329.9,2.30950736]
[1757101043119,0.1402,4330.0,4329.8,0.025]
[1757101043633,0.5705,4330.0,4329.8,0.025]
[1757101043822,0.4303,4329.9,4329.8,0.025]
[1757101044252,0.1431,4329.9,4329.8,2.3345755]
[1757101044426,0.4275,4330.3,4329.8,2.3345755]
[1757101044427,0.4275,4330.3,4329.8,0.025]
[1757101044745,0.1459,4329.9,4329.8,0.025]
[1757101045313,0.5705,4329.9,4329.8,0.025]
[1757101045755,0.1459,4329.9,4329.8,0.025]
[1757101046418,10.56815357,4329.9,4329.8,0.025]
[1757101047020,14.36015357,4329.9,4329.8,0.025]
[1757101049428,18.28715357,4329.9,4329.8,0.025]
[1757101052264,6.10184223,4329.3,4329.2,0.004]
[1757101052559,17.64997365,4329.3,4329.2,0.004]
[1757101052753,18.28657365,4329.3,4329.2,0.004]
[1757101053177,18.3791865,4329.3,4329.2,0.004]
[1757101053673,18.3131865,4329.3,4329.2,0.004]
[1757101054179,18.3791865,4329.3,4329.2,0.004]
[1757101055366,18.3131865,4329.3,4329.2,0.004]
[1757101055940,18.22057365,4329.3,4329.2,0.004]
[1757101057370,18.28657365,4329.3,4329.2,0.004]
[1757101057748,18.22057365,4329.3,4329.2,0.004]
[1757101058340,17.79867365,4329.3,4329.2,0.004]
[1757101063793,13.72397365,4329.3,4329.2,0.7606]
[1757101064077,17.64997365,4329.3,4329.2,0.7606]
[1757101064282,17.80137365,4329.3,4329.2,0.004]
[1757101066146,18.22057365,4329.3,4329.2,0.004]
[1757101066347,17.80137365,4329.3,4329.2,0.004]
[1757101069949,17.64997365,4329.3,4329.2,0.004]
[1757101070351,16.85697365,4329.3,4329.2,0.465]
[1757101070861,16.85697365,4329.3,4329.2,0.004]
[1757101071666,17.01107365,4329.3,4329.2,0.004]
[1757101072982,16.85697365,4329.3,4329.2,0.004]
[1757101073583,17.01367365,4329.3,4329.2,0.004]
[1757101073786,17.80567365,4329.3,4329.2,0.004]
[1757101073980,18.21957365,4329.3,4329.2,0.004]
[1757101074310,18.21957365,4329.3,4329.2,0.00033433]
[1757101076489,17.80567365,4329.3,4329.2,0.00033433]
[1757101077990,18.21957365,4329.3,4329.2,0.00033433]
[1757101080177,17.80567365,4329.3,4329.2,0.00033433]
[1757101080379,6.10189559,4329.2,4329.1,0.00036252]
[1757101080890,6.26119559,4329.2,4329.1,0.00036252]
[1757101081102,10.14779559,4329.2,4329.1,0.00036252]
[1757101081802,10.02489559,4329.2,4329.1,0.00036252]
[1757101082107,10.15099559,4329.2,4329.1,0.00036252]
[1757101082464,10.15099559,4329.2,4328.8,0.029]
[1757101082465,6.10205567,4328.9,4328.8,0.029]
[1757101082664,3.10232252,4328.4,4328.3,0.004]
[1757101082903,14.77675394,4328.4,4328.3,0.004]
[1757101086173,17.77675394,4328.4,4328.3,0.004]
[1757101086378,17.77675394,4328.4,4328.3,0.00033477]
[1757101088992,18.21785394,4328.4,4328.3,0.00033477]
[1757101089201,3.10258943,4327.9,4327.4,0.9446]
[1757101089511,17.64672085,4327.9,4327.4,0.9446]
[1757101089808,17.79072085,4327.9,4327.4,0.499]
[1757101091502,17.64672085,4327.9,4327.4,0.499]
[1757101091700,17.64672085,4327.9,4327.5,0.4294]
[1757101091903,17.79352085,4327.9,4327.4,0.499]
[1757101093089,33.792,4327.8,4325.7,0.004]
[1757101093276,3.10371112,4325.8,4325.7,0.004]
[1757101093481,16.35084254,4325.8,4325.7,0.004]
[1757101093677,16.35084254,4325.8,4325.7,0.3043]
[1757101093873,16.35084254,4325.8,4325.7,0.7337]
[1757101094073,16.65514254,4325.8,4325.7,0.7337]
[1757101094620,9.03301112,4325.8,4325.7,0.7337]
[1757101094899,16.65514254,4325.8,4325.7,0.7337]
[1757101095085,16.65514254,4325.8,4325.7,0.3043]
[1757101095489,16.65514254,4325.8,4325.7,0.8033]
[1757101095818,16.65514254,4325.8,4325.7,1.2327]
[1757101096016,16.65514254,4325.8,4324.9,0.499]
[1757101096017,2.31181801,4325.6,4324.9,0.499]
[1757101096314,10.72627014,4325.0,4324.9,0.499]
[1757101096475,3.10419218,4324.9,4324.4,0.499]
[1757101096670,6.10419218,4324.9,4324.4,0.499]
[1757101097707,13.85627014,4325.0,4323.8,0.029]
[1757101097708,2.31271425,4324.0,4323.8,0.029]
[1757101097895,4.01535258,4324.6,4324.5,0.4294]
[1757101098099,1.203,4324.6,4324.5,0.4294]
[1757101098276,5.125,4324.6,4324.5,0.7297]
[1757101099721,5.125,4324.6,4324.5,1.2287]
[1757101100376,5.125,4324.6,4324.5,3.54110605]
[1757101100623,5.125,4324.6,4324.5,1.2287]
[1757101101478,5.125,4324.6,4324.5,3.54110605]
[1757101101679,5.125,4324.6,4324.5,1.2287]
[1757101101913,11.62213817,4324.6,4324.5,1.2287]
[1757101102378,1.203,4324.6,4324.5,1.2287]
[1757101102578,5.125,4324.6,4324.5,1.2287]
[1757101103193,5.125,4324.6,4324.5,3.54110605]
[1757101103398,5.125,4324.6,4324.5,1.2287]
[1757101104115,5.125,4324.6,4324.5,3.54110605]
[1757101104311,1.203,4324.6,4324.5,3.54110605]
[1757101104503,5.125,4324.6,4324.5,3.54110605]
[1757101105008,5.125,4324.6,4324.5,1.2287]
[1757101105401,5.125,4324.6,4324.5,3.54110605]
[1757101106608,1.203,4324.6,4324.5,3.54110605]
[1757101106816,2.31187252,4325.5,4324.6,2.31232891]
[1757101107006,0.1152,4325.1,4324.8,2.31220807]
[1757101107200,0.1152,4325.1,4325.0,0.3003]
[1757101107402,4.0372,4325.1,4325.0,0.3003]
[1757101107583,4.0372,4325.1,4325.0,1.2287]
[1757101108284,6.34928526,4325.1,4325.0,1.2287]
[1757101108485,6.34928526,4325.1,4325.0,0.7297]
[1757101108698,4.0372,4325.1,4325.0,0.7297]
[1757101109621,4.0372,4325.1,4325.0,1.2287]
[1757101110396,3.922,4325.4,4325.1,2.31208526]
[1757101110618,0.026,4325.8,4325.1,2.31208526]
[1757101110619,3.922,4325.5,4325.4,2.3119249]
[1757101110805,0.026,4325.8,4325.6,2.31181801]
[1757101111016,3.922,4325.7,4325.6,2.31181801]
[1757101111215,0.026,4325.8,4325.6,2.31181801]
[1757101111216,3.948,4325.8,4325.7,2.31176456]
[1757101111531,3.948,4325.8,4325.7,3.54046456]
[1757101111733,3.948,4325.8,4325.7,7.04046456]
[1757101111949,0.026,4325.8,4325.7,3.54046456]
[1757101112293,0.026,4325.8,4325.7,7.04046456]
[1757101112502,0.026,4325.8,4325.7,11.71665179]
[1757101116133,0.026,4325.8,4325.7,12.41141869]
[1757101116944,0.026,4325.8,4325.7,10.78825179]
[1757101117144,2.31179507,4325.7,4324.6,0.4294]
[1757101117456,3.921,4325.6,4325.2,2.31203059]
[1757101117658,0.2934,4325.3,4325.2,2.31203059]
[1757101117813,3.921,4325.3,4325.2,6.81230741]
[1757101118015,0.026,4325.8,4325.2,5.4287]
[1757101118206,3.921,4325.7,4325.2,5.4287]
[1757101118454,3.921,4325.7,4325.5,2.31184637]
[1757101118655,3.921,4325.7,4325.6,0.3003]
[1757101119013,3.921,4325.7,4325.4,2.31190325]
[1757101119826,3.921,4325.7,4325.2,6.94142641]
[1757101119827,0.2934,4325.5,4325.2,4.2]
[1757101120248,0.4825,4325.4,4325.2,4.2]
[1757101120449,4.2312,4325.3,4325.2,4.2]
[1757101121656,4.2312,4325.3,4325.2,6.51203181]
[1757101122926,4.2312,4325.3,4325.2,4.2]
[1757101123636,4.2312,4325.3,4325.2,6.51203181]
[1757101124545,3.921,4325.3,4325.2,6.82223181]
[1757101125050,3.921,4325.3,4325.2,4.5102]
[1757101125553,3.921,4325.3,4325.2,6.82223181]
[1757101125722,3.921,4325.3,4325.2,4.5102]
[1757101125918,3.921,4325.3,4325.2,7.27213181]
[1757101126621,3.921,4325.3,4325.2,4.9601]
[1757101126850,3.921,4325.3,4325.2,4.5102]
[1757101127431,3.92,4325.3,4325.2,4.5102]
[1757101127636,3.92,4325.3,4325.2,6.82223181]
[1757101128420,3.92,4325.3,4325.2,4.2]
[1757101128816,4.2302,4325.3,4325.2,4.24]
[1757101129018,0.1152,4325.5,4325.2,6.86221575]
[1757101129373,0.1412,4325.8,4325.4,2.3119249]
[1757101129548,3.92,4325.7,4325.4,2.3119249]
[1757101130149,3.92,4325.7,4325.2,4.24]
[1757101130357,0.3102,4325.5,4325.2,4.24]
[1757101130552,2.62210628,4325.5,4325.2,4.24]
[1757101130724,0.7927,4325.5,4325.2,4.24]
[1757101130924,0.9079,4325.5,4325.2,4.24]
[1757101131124,0.4254,4325.5,4325.2,4.24]
[1757101131558,0.4254,4325.5,4325.2,6.55198595]
[1757101132058,3.919,4325.4,4325.2,4.24]
[1757101132566,0.1152,4325.5,4325.3,2.62217474]
[1757101132727,3.919,4325.4,4325.3,2.62217474]
[1757101133153,3.919,4325.4,4325.3,3.07207474]
[1757101134151,3.919,4325.4,4325.3,0.3102]
[1757101134758,0.1152,4325.5,4325.4,2.3119249]
[1757101134942,3.919,4325.5,4325.4,0.3102]
[1757101135649,3.919,4325.5,4325.4,2.6221249]
[1757101135826,3.919,4325.5,4325.4,0.3102]
[1757101137362,0.1412,4325.8,4325.4,2.6221249]
[1757101137536,3.919,4325.7,4325.5,3.24574614]
[1757101137741,3.919,4325.7,4325.6,0.7601]
[1757101140136,0.1412,4325.8,4325.6,0.7601]
[1757101140364,0.026,4325.8,4325.7,3.24566456]
[1757101140561,0.026,4325.8,4325.7,8.39395348]
[1757101140882,0.026,4325.8,4325.7,8.81935348]
[1757101143392,0.026,4325.8,4325.7,12.31935348]
[1757101145174,0.3362,4325.8,4325.7,3.6152]
[1757101145573,0.3362,4325.8,4325.7,5.92696456]
[1757101145740,0.3362,4325.8,4325.7,0.1152]
[1757101146175,0.3362,4325.8,4325.7,3.6152]
[1757101146668,0.3362,4325.8,4325.7,0.1152]
[1757101146871,0.8187,4325.8,4325.7,0.1152]
[1757101147072,0.8187,4325.8,4325.3,3.1152]
[1757101147073,5.2017,4325.8,4325.3,3.1152]
[1757101147273,0.9475,4325.7,4325.4,3.5]
[1757101147474,0.026,4325.8,4325.6,0.3102]
[1757101147678,3.917,4325.7,4325.6,2.62201801]
[1757101148069,0.026,4325.8,4325.7,2.31176456]
[1757101148266,3.943,4325.8,4325.7,2.31176456]
[1757101148446,3.943,4325.8,4325.7,2.62196456]
[1757101149279,3.943,4325.8,4325.7,0.3102]
[1757101149443,4.2537,4325.8,4325.5,2.31184454]
[1757101149643,4.7305,4325.8,4325.6,2.31181323]
[1757101150381,4.7305,4325.8,4325.7,2.31176456]
[1757101150545,3.943,4325.8,4325.7,2.31176456]
[1757101150952,3.943,4325.8,4325.6,2.31179789]
[1757101151668,3.943,4325.8,4325.4,3.5]
[1757101151865,3.943,4325.8,4325.5,2.31187145]
[1757101152178,3.943,4325.8,4325.6,2.31181801]
[1757101153946,4.2537,4325.8,4325.5,2.31185052]
[1757101154346,4.7305,4325.8,4325.4,3.5]
[1757101154542,4.7305,4325.8,4325.6,2.31181706]
[1757101155082,4.7305,4325.8,4325.7,2.31176456]
[1757101155257,4.2537,4325.8,4325.7,2.31176456]
[1757101155771,4.2537,4325.8,4325.7,6.51176456]
[1757101155947,3.943,4325.8,4325.7,6.82256456]
[1757101156149,3.943,4325.8,4325.7,7.70986456]
[1757101156565,3.943,4325.8,4325.7,7.25526456]
[1757101157478,0.026,4325.8,4325.7,6.82256456]
[1757101157678,0.026,4325.8,4325.7,15.23172207]
[1757101157977,0.026,4325.8,4325.7,18.73172207]
[1757101158187,0.026,4325.8,4325.7,12.23850707]
[1757101159363,0.026,4325.8,4325.7,7.12506456]
[1757101161384,0.026,4325.8,4325.7,6.67046456]
[1757101162704,0.026,4325.8,4325.7,7.12506456]
[1757101162996,0.026,4325.8,4325.7,21.22798371]
[1757101163615,0.026,4325.8,4325.7,14.73476871]
[1757101163809,0.026,4325.8,4325.7,17.00267668]
[1757101164311,0.026,4325.8,4325.7,9.93246871]
[1757101164616,0.026,4325.8,4325.7,5.62256456]
[1757101165111,0.026,4325.8,4325.7,9.12256456]
[1757101165280,0.026,4325.8,4325.7,9.55526456]
[1757101166107,0.026,4325.8,4325.7,9.12256456]
[1757101167106,0.026,4325.8,4325.7,9.55526456]
[1757101167504,0.026,4325.8,4325.7,11.56274155]
[1757101169990,0.026,4325.8,4325.7,11.65537714]
[1757101170392,0.026,4325.8,4325.7,10.81924155]
[1757101171417,0.3367,4325.8,4325.7,8.81176456]
[1757101171584,0.026,4325.8,4325.7,8.81176456]
[1757101173807,0.026,4325.8,4325.7,9.12256456]
[1757101174619,0.026,4325.8,4325.7,9.23776456]
[1757101179395,0.026,4325.8,4325.7,13.43776456]
[1757101180416,1.244,4325.8,4325.7,6.62696456]
[1757101181799,0.795,4325.8,4325.7,6.62696456]
[1757101183135,0.795,4325.8,4325.7,0.1152]
[1757101183432,0.795,4325.8,4325.2,3.04]
[1757101183433,1.244,4325.8,4325.2,0.1552]
[1757101183809,1.244,4325.8,4325.5,2.31185603]
[1757101183999,0.9021,4325.7,4325.4,2.31190132]
[1757101184199,0.3159,4325.5,4325.4,2.31190132]
[1757101184432,0.769,4325.5,4325.2,0.1552]
[1757101184634,0.4531,4325.4,4325.3,2.31195166]
[1757101184849,1.218,4325.4,4325.2,0.04]
[1757101185032,0.9021,4325.3,4325.2,2.351994]
[1757101185233,1.218,4325.3,4325.2,2.351994]
[1757101185543,1.218,4325.3,4325.2,0.04]
[1757101186131,1.218,4325.3,4325.2,2.35203181]
[1757101186334,0.3159,4325.3,4325.2,2.35203181]
[1757101187059,0.1152,4325.6,4325.4,2.31191853]
[1757101187258,0.1152,4325.6,4325.5,2.31187145]
[1757101187444,0.026,4325.8,4325.7,2.31176456]
[1757101187622,0.026,4325.8,4325.7,2.60176456]
[1757101188656,0.026,4325.8,4325.7,3.07666456]
[1757101189153,0.026,4325.8,4325.7,2.31176456]
[1757101189333,0.3419,4325.8,4325.7,2.31176456]
[1757101192274,0.795,4325.8,4325.4,0.1152]
[1757101192467,1.244,4325.8,4325.4,0.1152]
[1757101192638,0.4531,4325.7,4325.4,0.1152]
[1757101192959,0.4531,4325.7,4325.5,2.31183729]
[1757101193155,0.3159,4325.6,4325.5,2.31183729]
[1757101193665,0.4531,4325.7,4325.4,0.1152]
[1757101193666,0.026,4325.8,4325.4,2.42712132]
[1757101194163,0.026,4325.8,4325.5,2.31187145]
[1757101194335,0.4791,4325.8,4325.5,2.31187145]
[1757101194537,0.3159,4325.6,4325.5,2.31187145]
[1757101194737,0.4791,4325.8,4325.6,2.31179162]
[1757101194945,0.4791,4325.8,4325.5,2.31184562]
[1757101194946,0.3159,4325.7,4325.5,2.31184562]
[1757101195148,0.026,4325.8,4325.6,2.60181801]
[1757101196366,0.026,4325.8,4325.7,2.31176456]
[1757101196766,0.3159,4325.7,4325.5,3.5]
[1757101197156,0.3159,4325.7,4325.5,5.81184498]
[1757101197879,0.3159,4325.7,4325.6,2.31181801]
[1757101198685,0.3159,4325.7,4325.5,3.5]
[1757101198686,0.3159,4325.7,4325.5,5.81185408]
[1757101199043,0.9021,4325.6,4325.4,0.2304]
[1757101199364,0.769,4325.5,4325.4,2.42711584]
[1757101199879,0.026,4325.8,4325.4,0.8801]
[1757101200175,0.026,4325.8,4325.6,2.31178589]
[1757101200371,0.026,4325.8,4325.7,2.3348822]
[1757101200549,0.026,4325.8,4325.7,2.31176456]
[1757101200750,0.026,4325.8,4325.7,2.60176456]
[1757101201064,0.026,4325.8,4325.6,2.31180262]
[1757101201265,0.3419,4325.8,4325.5,2.31183823]
[1757101201572,0.026,4325.8,4325.5,2.31187075]
[1757101202285,0.026,4325.8,4325.6,2.31181801]
[1757101202590,0.3159,4325.6,4325.4,0.6835]
[1757101202946,0.4531,4325.5,4325.4,0.1152]
[1757101203345,0.769,4325.5,4325.4,2.4271249]
[1757101203891,0.769,4325.5,4325.4,0.1152]
[1757101204568,0.769,4325.5,4325.2,6.54693669]
[1757101204779,0.769,4325.5,4325.4,2.3119249]
[1757101204988,0.3159,4325.5,4325.2,3.54]
[1757101205189,0.4531,4325.4,4325.2,3.54]
[1757101205391,0.3159,4325.3,4325.2,5.85203062]
[1757101205573,0.769,4325.3,4325.2,3.54]
[1757101205889,0.769,4325.3,4325.2,0.04]
[1757101206664,3.52997835,4325.3,4325.2,0.04]
[1757101208546,3.72652742,4325.3,4325.2,0.04]
[1757101210459,3.27752742,4325.3,4325.2,0.04]
[1757101210881,3.74262742,4325.3,4325.2,0.04]
[1757101211246,7.65162742,4325.3,4325.2,0.04]
[1757101212187,15.28984286,4325.3,4325.2,0.04]
[1757101212753,7.65162742,4325.3,4325.2,0.04]
[1757101213952,3.74262742,4325.3,4325.2,0.04]
[1757101214268,7.18652742,4325.3,4325.2,0.04]
[1757101214659,6.73342742,4325.3,4325.2,0.04]
[1757101215396,7.21112742,4325.3,4325.2,0.04]
[1757101215584,7.67622742,4325.3,4325.2,0.04]
[1757101216576,3.76722742,4325.3,4325.2,0.04]
[1757101216898,7.67622742,4325.3,4325.2,0.04]
[1757101217853,7.21112742,4325.3,4325.2,0.04]
[1757101218061,6.73342742,4325.3,4325.2,0.04]
[1757101219007,7.21112742,4325.3,4325.2,0.04]
[1757101219480,7.67622742,4325.3,4325.2,0.04]
[1757101220182,7.21112742,4325.3,4325.2,0.04]
[1757101221257,7.21012742,4325.3,4325.2,0.04]
[1757101222959,0.51244907,4325.3,4325.2,0.04]
[1757101223150,6.73242742,4325.3,4325.2,0.04]
[1757101225992,0.19754907,4325.3,4325.2,0.3439]
[1757101226197,0.001,4325.3,4325.2,3.59913181]
[1757101226378,0.001,4325.3,4325.2,8.35140744]
[1757101226575,0.001,4325.3,4325.2,15.54269013]
[1757101227167,0.001,4325.3,4325.2,9.04635781]
[1757101228271,0.001,4325.3,4325.2,15.54269013]
[1757101231989,0.001,4325.3,4325.2,19.74269013]
[1757101236583,0.001,4325.3,4325.2,19.85789013]
[1757101238325,0.001,4325.3,4325.2,26.76389013]
[1757101238627,0.026,4325.8,4325.7,2.31176456]
[1757101238786,0.026,4325.8,4325.7,3.19392352]
[1757101238987,0.026,4325.8,4325.7,12.66022352]
[1757101239298,0.026,4325.8,4325.7,16.25285911]
[1757101239687,0.026,4325.8,4325.7,23.42285911]
[1757101240013,0.001,4325.9,4325.8,3.10371112]
[1757101240234,0.001,4325.9,4325.8,12.85696852]
[1757101240382,0.001,4325.9,4325.8,13.14025141]
[1757101240583,0.001,4325.9,4325.8,16.64025141]
[1757101241646,0.001,4325.9,4325.8,16.75797274]
[1757101242515,0.001,4325.9,4325.8,26.92797274]